[Event "Titled Tuesday Blitz March 28 Late 2023"]
[White "Mekhitarian, Krikor Sevag"]
[Black "Karthik Rajaa"]
[WhiteFideId "2107660"]
[BlackFideId "25035215"]
[WhiteElo "2604"]
[BlackElo "2215"]
[Result "1-0"]
[Round "05"]
[TimeControl "180+2"]
[Date "2023.03.28"]
[WhiteClock "0:00:17"]
[BlackClock "0:00:05"]

1. Nf3 {[%clk 0:03:00]}  Nf6 {[%clk 0:02:54]} 2. c4 {[%clk 0:03:00]}  g6 {[%clk 0:02:53]} 3. Nc3 {[%clk 0:03:00]}  Bg7 {[%clk 0:02:54]} 4. e4 {[%clk 0:03:00]}  d6 {[%clk 0:02:55]} 5. d4 {[%clk 0:03:01]}  O-O {[%clk 0:02:55]} 6. h3 {[%clk 0:03:02]}  Nbd7 {[%clk 0:02:56]} 7. Be3 {[%clk 0:03:00]}  e5 {[%clk 0:02:55]} 8. d5 {[%clk 0:03:01]}  Nh5 {[%clk 0:02:56]} 9. g3 {[%clk 0:02:58]}  Nc5 {[%clk 0:01:33]} 10. Nd2 {[%clk 0:02:52]}  a5 {[%clk 0:01:33]} 11. Be2 {[%clk 0:02:52]}  Nf6 {[%clk 0:01:32]} 12. g4 {[%clk 0:02:38]}  c6 {[%clk 0:01:25]} 13. h4 {[%clk 0:02:32]}  a4 {[%clk 0:01:19]} 14. h5 {[%clk 0:02:27]}  Qa5 {[%clk 0:01:17]} 15. Kf1 {[%clk 0:02:27]}  a3 {[%clk 0:01:16]} 16. b4 {[%clk 0:02:18]}  Qxb4 {[%clk 0:01:14]} 17. Rc1 {[%clk 0:02:05]}  Na4 {[%clk 0:00:58]} 18. Nxa4 {[%clk 0:01:58]}  Qxa4 {[%clk 0:00:59]} 19. h6 {[%clk 0:01:56]}  Qxd1+ {[%clk 0:00:55]} 20. Rxd1 {[%clk 0:01:52]}  Bh8 {[%clk 0:00:42]} 21. f3 {[%clk 0:01:44]}  c5 {[%clk 0:00:38]} 22. Rb1 {[%clk 0:01:44]}  Ra6 {[%clk 0:00:33]} 23. Kg2 {[%clk 0:01:42]}  Nd7 {[%clk 0:00:28]} 24. Bd3 {[%clk 0:01:40]}  Bf6 {[%clk 0:00:26]} 25. Rb3 {[%clk 0:01:37]}  Bd8 {[%clk 0:00:25]} 26. Nb1 {[%clk 0:01:36]}  Nb6 {[%clk 0:00:19]} 27. Rxa3 {[%clk 0:01:32]}  Bd7 {[%clk 0:00:17]} 28. Rxa6 {[%clk 0:01:25]}  bxa6 {[%clk 0:00:18]} 29. Nc3 {[%clk 0:01:24]}  Bc7 {[%clk 0:00:19]} 30. Rb1 {[%clk 0:01:23]}  Rb8 {[%clk 0:00:19]} 31. Bg5 {[%clk 0:01:21]}  Kf8 {[%clk 0:00:18]} 32. Bf6 {[%clk 0:01:12]}  Nc8 {[%clk 0:00:15]} 33. Rxb8 {[%clk 0:01:03]}  Bxb8 {[%clk 0:00:16]} 34. Bc2 {[%clk 0:01:03]}  Bc7 {[%clk 0:00:15]} 35. Bb3 {[%clk 0:01:01]}  Ke8 {[%clk 0:00:15]} 36. Kf2 {[%clk 0:01:00]}  Bd8 {[%clk 0:00:15]} 37. Bxd8 {[%clk 0:00:59]}  Kxd8 {[%clk 0:00:16]} 38. g5 {[%clk 0:00:59]}  Ke7 {[%clk 0:00:16]} 39. Kg3 {[%clk 0:00:59]}  f6 {[%clk 0:00:17]} 40. f4 {[%clk 0:01:00]}  exf4+ {[%clk 0:00:15]} 41. Kxf4 {[%clk 0:01:01]}  fxg5+ {[%clk 0:00:15]} 42. Kxg5 {[%clk 0:01:01]}  Kf7 {[%clk 0:00:14]} 43. e5 {[%clk 0:00:58]}  dxe5 {[%clk 0:00:11]} 44. Ne4 {[%clk 0:00:59]}  Bf5 {[%clk 0:00:10]} 45. Nxc5 {[%clk 0:00:56]}  Nd6 {[%clk 0:00:10]} 46. Kh4 {[%clk 0:00:33]}  a5 {[%clk 0:00:10]} 47. Kg3 {[%clk 0:00:32]}  Kf6 {[%clk 0:00:11]} 48. Kf2 {[%clk 0:00:28]}  g5 {[%clk 0:00:11]} 49. Na4 {[%clk 0:00:26]}  Bd7 {[%clk 0:00:08]} 50. Nb6 {[%clk 0:00:21]}  Ne4+ {[%clk 0:00:09]} 51. Ke3 {[%clk 0:00:21]}  Nc5 {[%clk 0:00:10]} 52. Bc2 {[%clk 0:00:18]}  Bf5 {[%clk 0:00:07]} 53. Bxf5 {[%clk 0:00:16]}  Kxf5 {[%clk 0:00:08]} 54. Nc8 {[%clk 0:00:16]}  g4 {[%clk 0:00:07]} 55. Nd6+ {[%clk 0:00:16]}  Kg5 {[%clk 0:00:05]} 56. Ne4+ {[%clk 0:00:16]}  Nxe4 {[%clk 0:00:05]} 57. Kxe4 {[%clk 0:00:17]}  Kh4 {[%clk 0:00:05]} 58. d6 {[%clk 0:00:17]}  g3 {[%clk 0:00:04]} 59. d7 {[%clk 0:00:18]}  g2 {[%clk 0:00:05]} 60. d8=Q+ {[%clk 0:00:18]}  Kh3 {[%clk 0:00:05]} 61. Qg5 {[%clk 0:00:17]}  Kh2 {[%clk 0:00:05]} 62. Qh4+ {[%clk 0:00:17]}  Kg1 {[%clk 0:00:05]} 63. Ke3 {[%clk 0:00:17]} 1-0


[Site "https://www.chess.com"]

[Event "Titled Tuesday Blitz March 28 Late 2023"]
[White "Lewtak, Damian"]
[Black "Ibarra Jerez, Jose Carlos"]
[WhiteFideId "1141724"]
[BlackFideId "2226332"]
[WhiteElo "2302"]
[BlackElo "2638"]
[Result "1/2-1/2"]
[Round "05"]
[TimeControl "180+2"]
[Date "2023.03.28"]
[WhiteClock "0:00:06"]
[BlackClock "0:00:07"]

1. e4 {[%clk 0:02:50]}  Nc6 {[%clk 0:02:57]} 2. Nc3 {[%clk 0:02:47]}  e6 {[%clk 0:02:56]} 3. d4 {[%clk 0:02:47]}  d5 {[%clk 0:02:56]} 4. exd5 {[%clk 0:02:48]}  exd5 {[%clk 0:02:56]} 5. Be3 {[%clk 0:02:42]}  Nf6 {[%clk 0:02:53]} 6. f3 {[%clk 0:02:35]}  Bb4 {[%clk 0:02:45]} 7. Qd2 {[%clk 0:02:34]}  O-O {[%clk 0:02:44]} 8. O-O-O {[%clk 0:02:34]}  Na5 {[%clk 0:02:38]} 9. g4 {[%clk 0:02:31]}  Nc4 {[%clk 0:02:27]} 10. Bxc4 {[%clk 0:02:31]}  dxc4 {[%clk 0:02:28]} 11. Bg5 {[%clk 0:02:31]}  c6 {[%clk 0:02:24]} 12. Nge2 {[%clk 0:02:28]}  Re8 {[%clk 0:02:23]} 13. Ng3 {[%clk 0:02:28]}  Be7 {[%clk 0:02:05]} 14. h4 {[%clk 0:02:23]}  b5 {[%clk 0:02:04]} 15. Nce4 {[%clk 0:02:16]}  Nd5 {[%clk 0:01:55]} 16. Bxe7 {[%clk 0:01:41]}  Rxe7 {[%clk 0:01:54]} 17. Nh5 {[%clk 0:01:35]}  Kh8 {[%clk 0:01:36]} 18. Rde1 {[%clk 0:01:23]}  b4 {[%clk 0:01:34]} 19. Ng5 {[%clk 0:01:19]}  f6 {[%clk 0:01:18]} 20. Rxe7 {[%clk 0:01:16]}  Qxe7 {[%clk 0:01:19]} 21. Re1 {[%clk 0:01:13]}  Qf8 {[%clk 0:01:19]} 22. Ne6 {[%clk 0:00:48]}  Bxe6 {[%clk 0:01:19]} 23. Rxe6 {[%clk 0:00:49]}  c3 {[%clk 0:01:18]} 24. Qe1 {[%clk 0:00:45]}  cxb2+ {[%clk 0:01:17]} 25. Kxb2 {[%clk 0:00:44]}  Qf7 {[%clk 0:01:09]} 26. Rxc6 {[%clk 0:00:38]}  Re8 {[%clk 0:01:04]} 27. Qf1 {[%clk 0:00:36]}  g6 {[%clk 0:00:58]} 28. Ng3 {[%clk 0:00:35]}  Nc3 {[%clk 0:00:57]} 29. Qc4 {[%clk 0:00:35]}  Re1 {[%clk 0:00:09]} 30. Rc8+ {[%clk 0:00:33]}  Kg7 {[%clk 0:00:09]} 31. Qxf7+ {[%clk 0:00:33]}  Kxf7 {[%clk 0:00:10]} 32. Kb3 {[%clk 0:00:30]}  Rb1+ {[%clk 0:00:10]} 33. Kc4 {[%clk 0:00:28]}  Ke6 {[%clk 0:00:10]} 34. Ne4 {[%clk 0:00:21]}  Nxa2 {[%clk 0:00:09]} 35. Nc5+ {[%clk 0:00:21]}  Ke7 {[%clk 0:00:07]} 36. Rc7+ {[%clk 0:00:20]}  Ke8 {[%clk 0:00:05]} 37. Rxa7 {[%clk 0:00:18]}  Nc3 {[%clk 0:00:04]} 38. d5 {[%clk 0:00:16]}  Rc1 {[%clk 0:00:05]} 39. Ne6 {[%clk 0:00:14]}  Rd1 {[%clk 0:00:04]} 40. Ng7+ {[%clk 0:00:13]}  Kd8 {[%clk 0:00:03]} 41. Ne6+ {[%clk 0:00:14]}  Kc8 {[%clk 0:00:04]} 42. Rc7+ {[%clk 0:00:08]}  Kb8 {[%clk 0:00:04]} 43. Rc5 {[%clk 0:00:08]}  Rd2 {[%clk 0:00:02]} 44. Nd4 {[%clk 0:00:06]}  Na4 {[%clk 0:00:02]} 45. Rb5+ {[%clk 0:00:06]}  Kc7 {[%clk 0:00:03]} 46. Rxb4 {[%clk 0:00:06]}  Nb6+ {[%clk 0:00:02]} 47. Kb3 {[%clk 0:00:03]}  Nxd5 {[%clk 0:00:02]} 48. Rc4+ {[%clk 0:00:03]}  Kd6 {[%clk 0:00:02]} 49. Nb5+ {[%clk 0:00:04]}  Ke6 {[%clk 0:00:03]} 50. Re4+ {[%clk 0:00:04]}  Kd7 {[%clk 0:00:03]} 51. c4 {[%clk 0:00:04]}  Rd3+ {[%clk 0:00:02]} 52. Kc2 {[%clk 0:00:05]}  Nb4+ {[%clk 0:00:03]} 53. Kb2 {[%clk 0:00:05]}  Rxf3 {[%clk 0:00:03]} 54. Rd4+ {[%clk 0:00:04]}  Kc6 {[%clk 0:00:04]} 55. Nc3 {[%clk 0:00:04]}  Nd3+ {[%clk 0:00:03]} 56. Kc2 {[%clk 0:00:04]}  Ne5 {[%clk 0:00:03]} 57. Ne4 {[%clk 0:00:03]}  Rf4 {[%clk 0:00:02]} 58. Kd2 {[%clk 0:00:02]}  Nf3+ {[%clk 0:00:02]} 59. Ke3 {[%clk 0:00:02]}  Nxd4 {[%clk 0:00:02]} 60. Kxf4 {[%clk 0:00:02]}  Ne6+ {[%clk 0:00:03]} 61. Ke3 {[%clk 0:00:02]}  f5 {[%clk 0:00:03]} 62. gxf5 {[%clk 0:00:03]}  gxf5 {[%clk 0:00:04]} 63. Ng5 {[%clk 0:00:02]}  Nf8 {[%clk 0:00:04]} 64. Kf4 {[%clk 0:00:02]}  Ng6+ {[%clk 0:00:05]} 65. Kg3 {[%clk 0:00:02]}  Nxh4 {[%clk 0:00:04]} 66. Kxh4 {[%clk 0:00:01]}  Kc5 {[%clk 0:00:05]} 67. Kg3 {[%clk 0:00:02]}  Kxc4 {[%clk 0:00:05]} 68. Kf3 {[%clk 0:00:02]}  Kd5 {[%clk 0:00:06]} 69. Kf4 {[%clk 0:00:03]}  h5 {[%clk 0:00:05]} 70. Nh3 {[%clk 0:00:04]}  h4 {[%clk 0:00:06]} 71. Kxf5 {[%clk 0:00:04]}  Kd4 {[%clk 0:00:06]} 72. Kg4 {[%clk 0:00:05]}  Ke4 {[%clk 0:00:07]} 73. Kxh4 {[%clk 0:00:06]} 1/2-1/2


[Site "https://www.chess.com"]

[Event "Titled Tuesday Blitz March 28 Late 2023"]
[White "Florescu, Codrut-Constantin"]
[Black "Rasulov, Vugar"]
[WhiteFideId "1202200"]
[BlackFideId "13402390"]
[WhiteElo "2191"]
[BlackElo "2509"]
[Result "0-1"]
[Round "05"]
[TimeControl "180+2"]
[Date "2023.03.28"]
[WhiteClock "0:00:18"]
[BlackClock "0:01:27"]

1. e4 {[%clk 0:03:00]}  c5 {[%clk 0:02:59]} 2. Nf3 {[%clk 0:03:00]}  Nc6 {[%clk 0:03:00]} 3. d4 {[%clk 0:03:00]}  cxd4 {[%clk 0:03:01]} 4. Nxd4 {[%clk 0:03:00]}  Nf6 {[%clk 0:03:01]} 5. Nc3 {[%clk 0:02:59]}  e5 {[%clk 0:03:01]} 6. Ndb5 {[%clk 0:02:59]}  d6 {[%clk 0:03:01]} 7. Bg5 {[%clk 0:02:58]}  a6 {[%clk 0:03:01]} 8. Na3 {[%clk 0:02:59]}  b5 {[%clk 0:02:59]} 9. Nd5 {[%clk 0:02:59]}  Be7 {[%clk 0:02:58]} 10. Bxf6 {[%clk 0:02:59]}  Bxf6 {[%clk 0:02:59]} 11. c3 {[%clk 0:02:59]}  O-O {[%clk 0:02:43]} 12. Nc2 {[%clk 0:02:56]}  Rb8 {[%clk 0:02:42]} 13. a3 {[%clk 0:02:46]}  Bg5 {[%clk 0:02:40]} 14. Be2 {[%clk 0:02:44]}  Ne7 {[%clk 0:02:34]} 15. Nxe7+ {[%clk 0:02:42]}  Qxe7 {[%clk 0:02:35]} 16. Nb4 {[%clk 0:02:42]}  Bb7 {[%clk 0:02:30]} 17. Nd5 {[%clk 0:02:40]}  Qe6 {[%clk 0:02:29]} 18. Bg4 {[%clk 0:02:34]}  f5 {[%clk 0:02:25]} 19. Bf3 {[%clk 0:01:39]}  Bxd5 {[%clk 0:02:24]} 20. exd5 {[%clk 0:01:39]}  Qh6 {[%clk 0:02:12]} 21. g3 {[%clk 0:01:34]}  e4 {[%clk 0:02:11]} 22. Bg2 {[%clk 0:01:33]}  Rbe8 {[%clk 0:02:07]} 23. O-O {[%clk 0:01:29]}  f4 {[%clk 0:02:07]} 24. Qd4 {[%clk 0:01:12]}  f3 {[%clk 0:02:04]} 25. Bh1 {[%clk 0:01:10]}  e3 {[%clk 0:02:02]} 26. h4 {[%clk 0:01:02]}  e2 {[%clk 0:01:52]} 27. Rfe1 {[%clk 0:01:00]}  Bd2 {[%clk 0:01:51]} 28. Qd3 {[%clk 0:00:42]}  Bxe1 {[%clk 0:01:50]} 29. Rxe1 {[%clk 0:00:40]}  Qf6 {[%clk 0:01:45]} 30. Kh2 {[%clk 0:00:34]}  Re5 {[%clk 0:01:41]} 31. a4 {[%clk 0:00:30]}  bxa4 {[%clk 0:01:36]} 32. Qxa6 {[%clk 0:00:27]}  g5 {[%clk 0:01:30]} 33. hxg5 {[%clk 0:00:18]}  Rxg5 {[%clk 0:01:29]} 34. Kg1 {[%clk 0:00:18]}  Rxg3+ {[%clk 0:01:27]} 0-1


[Site "https://www.chess.com"]

[Event "Titled Tuesday Blitz March 28 Late 2023"]
[White "Tilicheev, Viacheslav"]
[Black "Babazada, Khazar"]
[WhiteFideId "24114928"]
[BlackFideId "13413554"]
[WhiteElo "2415"]
[BlackElo "2364"]
[Result "1/2-1/2"]
[Round "05"]
[TimeControl "180+2"]
[Date "2023.03.28"]
[WhiteClock "0:00:07"]
[BlackClock "0:00:07"]

1. e4 {[%clk 0:03:00]}  Nf6 {[%clk 0:01:53]} 2. e5 {[%clk 0:02:50]}  Nd5 {[%clk 0:01:51]} 3. d4 {[%clk 0:02:50]}  d6 {[%clk 0:01:51]} 4. Nf3 {[%clk 0:02:51]}  Nb6 {[%clk 0:01:50]} 5. Be2 {[%clk 0:02:39]}  g6 {[%clk 0:01:50]} 6. O-O {[%clk 0:02:38]}  Bg7 {[%clk 0:01:50]} 7. exd6 {[%clk 0:02:37]}  cxd6 {[%clk 0:01:51]} 8. c4 {[%clk 0:02:37]}  O-O {[%clk 0:01:51]} 9. Nc3 {[%clk 0:02:38]}  Bf5 {[%clk 0:01:49]} 10. Be3 {[%clk 0:02:37]}  d5 {[%clk 0:01:46]} 11. cxd5 {[%clk 0:02:13]}  Nxd5 {[%clk 0:01:46]} 12. Qb3 {[%clk 0:02:14]}  Nxe3 {[%clk 0:01:45]} 13. fxe3 {[%clk 0:02:15]}  Nd7 {[%clk 0:01:29]} 14. e4 {[%clk 0:02:01]}  Bg4 {[%clk 0:01:29]} 15. Ng5 {[%clk 0:02:02]}  Bxe2 {[%clk 0:01:29]} 16. Rxf7 {[%clk 0:02:01]}  Rxf7 {[%clk 0:01:06]} 17. Qxf7+ {[%clk 0:01:51]}  Kh8 {[%clk 0:01:05]} 18. Qxg7+ {[%clk 0:01:48]}  Kxg7 {[%clk 0:01:02]} 19. Ne6+ {[%clk 0:01:49]}  Kf7 {[%clk 0:00:59]} 20. Nxd8+ {[%clk 0:01:50]}  Rxd8 {[%clk 0:01:00]} 21. Nxe2 {[%clk 0:01:49]}  e5 {[%clk 0:00:51]} 22. d5 {[%clk 0:01:48]}  Nc5 {[%clk 0:00:51]} 23. Nc3 {[%clk 0:01:48]}  Ke7 {[%clk 0:00:49]} 24. Kf2 {[%clk 0:01:48]}  Nd3+ {[%clk 0:00:47]} 25. Ke2 {[%clk 0:01:48]}  Nf4+ {[%clk 0:00:43]} 26. Kf2 {[%clk 0:01:12]}  Rf8 {[%clk 0:00:41]} 27. Kg1 {[%clk 0:01:12]}  a6 {[%clk 0:00:39]} 28. Rd1 {[%clk 0:01:12]}  Kd6 {[%clk 0:00:38]} 29. g3 {[%clk 0:01:07]}  Nh5 {[%clk 0:00:36]} 30. Rf1 {[%clk 0:01:04]}  Nf6 {[%clk 0:00:36]} 31. Rf3 {[%clk 0:00:59]}  b5 {[%clk 0:00:32]} 32. Kf1 {[%clk 0:00:59]}  Ke7 {[%clk 0:00:27]} 33. Ke2 {[%clk 0:00:55]}  Rc8 {[%clk 0:00:25]} 34. a3 {[%clk 0:00:48]}  Rc4 {[%clk 0:00:25]} 35. Kd3 {[%clk 0:00:46]}  Rd4+ {[%clk 0:00:24]} 36. Ke3 {[%clk 0:00:47]}  Ng4+ {[%clk 0:00:22]} 37. Ke2 {[%clk 0:00:47]}  Nxh2 {[%clk 0:00:17]} 38. Rd3 {[%clk 0:00:36]}  Rxd3 {[%clk 0:00:17]} 39. Kxd3 {[%clk 0:00:37]}  Nf1 {[%clk 0:00:18]} 40. g4 {[%clk 0:00:35]}  Nh2 {[%clk 0:00:17]} 41. g5 {[%clk 0:00:33]}  Nf3 {[%clk 0:00:17]} 42. a4 {[%clk 0:00:33]}  bxa4 {[%clk 0:00:15]} 43. Nxa4 {[%clk 0:00:34]}  Nxg5 {[%clk 0:00:14]} 44. b4 {[%clk 0:00:34]}  h5 {[%clk 0:00:14]} 45. Nc5 {[%clk 0:00:34]}  h4 {[%clk 0:00:12]} 46. Ke3 {[%clk 0:00:35]}  h3 {[%clk 0:00:06]} 47. Kf2 {[%clk 0:00:35]}  Kd6 {[%clk 0:00:06]} 48. Kg3 {[%clk 0:00:31]}  Nxe4+ {[%clk 0:00:04]} 49. Nxe4+ {[%clk 0:00:30]}  Kxd5 {[%clk 0:00:05]} 50. Nf6+ {[%clk 0:00:02]}  Kc4 {[%clk 0:00:05]} 51. Nd7 {[%clk 0:00:03]}  e4 {[%clk 0:00:03]} 52. Kxh3 {[%clk 0:00:03]}  Kxb4 {[%clk 0:00:03]} 53. Kg3 {[%clk 0:00:04]}  a5 {[%clk 0:00:04]} 54. Nb6 {[%clk 0:00:03]}  Kb5 {[%clk 0:00:02]} 55. Nd5 {[%clk 0:00:04]}  Kc4 {[%clk 0:00:02]} 56. Nb6+ {[%clk 0:00:02]}  Kc5 {[%clk 0:00:03]} 57. Na4+ {[%clk 0:00:02]}  Kb4 {[%clk 0:00:04]} 58. Nb6 {[%clk 0:00:02]}  Kb5 {[%clk 0:00:02]} 59. Nd5 {[%clk 0:00:03]}  Kc5 {[%clk 0:00:03]} 60. Nc3 {[%clk 0:00:03]}  Kd4 {[%clk 0:00:03]} 61. Na4 {[%clk 0:00:03]}  Kd3 {[%clk 0:00:03]} 62. Nc5+ {[%clk 0:00:03]}  Ke3 {[%clk 0:00:04]} 63. Kg4 {[%clk 0:00:02]}  Kd4 {[%clk 0:00:03]} 64. Nb3+ {[%clk 0:00:02]}  Kd3 {[%clk 0:00:03]} 65. Nc5+ {[%clk 0:00:01]}  Ke3 {[%clk 0:00:02]} 66. Kg3 {[%clk 0:00:02]}  Kd4 {[%clk 0:00:02]} 67. Nb3+ {[%clk 0:00:02]}  Kd3 {[%clk 0:00:03]} 68. Nc5+ {[%clk 0:00:02]}  Kc4 {[%clk 0:00:03]} 69. Nxe4 {[%clk 0:00:02]}  a4 {[%clk 0:00:03]} 70. Nd2+ {[%clk 0:00:03]}  Kc3 {[%clk 0:00:04]} 71. Nb1+ {[%clk 0:00:03]}  Kb2 {[%clk 0:00:04]} 72. Nd2 {[%clk 0:00:04]}  Kc2 {[%clk 0:00:05]} 73. Nc4 {[%clk 0:00:04]}  Kc3 {[%clk 0:00:05]} 74. Na3 {[%clk 0:00:04]}  Kb4 {[%clk 0:00:06]} 75. Nb1 {[%clk 0:00:04]}  Kb3 {[%clk 0:00:06]} 76. Kg4 {[%clk 0:00:05]}  Kb2 {[%clk 0:00:06]} 77. Nd2 {[%clk 0:00:06]}  Kc3 {[%clk 0:00:06]} 78. Nb1+ {[%clk 0:00:06]}  Kd3 {[%clk 0:00:07]} 79. Kg5 {[%clk 0:00:06]}  Kc2 {[%clk 0:00:07]} 80. Na3+ {[%clk 0:00:06]}  Kb2 {[%clk 0:00:08]} 81. Nb5 {[%clk 0:00:06]}  Kb3 {[%clk 0:00:08]} 82. Kxg6 {[%clk 0:00:07]}  Kc4 {[%clk 0:00:08]} 83. Na3+ {[%clk 0:00:07]}  Kb4 {[%clk 0:00:08]} 84. Nb1 {[%clk 0:00:07]}  a3 {[%clk 0:00:07]} 85. Nxa3 {[%clk 0:00:07]} 1/2-1/2


[Site "https://www.chess.com"]

[Event "Titled Tuesday Blitz March 28 Late 2023"]
[White "Thomforde-Toates, Noah"]
[Black "Kovalev, Vladislav"]
[WhiteFideId "30951992"]
[BlackFideId "13504398"]
[WhiteElo "2661"]
[BlackElo "2555"]
[Result "0-1"]
[Round "05"]
[TimeControl "180+2"]
[Date "2023.03.28"]
[WhiteClock "0:00:24"]
[BlackClock "0:00:08"]

1. e4 {[%clk 0:03:00]}  e5 {[%clk 0:03:00]} 2. Nf3 {[%clk 0:03:00]}  Nc6 {[%clk 0:03:01]} 3. Bb5 {[%clk 0:03:01]}  a6 {[%clk 0:03:01]} 4. Bxc6 {[%clk 0:03:01]}  dxc6 {[%clk 0:03:02]} 5. O-O {[%clk 0:03:01]}  Bd6 {[%clk 0:02:59]} 6. d4 {[%clk 0:03:01]}  exd4 {[%clk 0:03:00]} 7. Qxd4 {[%clk 0:03:00]}  f6 {[%clk 0:03:00]} 8. Nc3 {[%clk 0:02:59]}  Ne7 {[%clk 0:02:56]} 9. Be3 {[%clk 0:02:58]}  Ng6 {[%clk 0:02:50]} 10. h3 {[%clk 0:02:56]}  Be6 {[%clk 0:02:42]} 11. Rad1 {[%clk 0:02:55]}  Qe7 {[%clk 0:02:40]} 12. a3 {[%clk 0:02:54]}  O-O {[%clk 0:02:39]} 13. Rfe1 {[%clk 0:02:46]}  Rfd8 {[%clk 0:02:28]} 14. Qa4 {[%clk 0:02:46]}  Rd7 {[%clk 0:01:17]} 15. Nd4 {[%clk 0:02:42]}  Rad8 {[%clk 0:01:17]} 16. Nxe6 {[%clk 0:02:07]}  Qxe6 {[%clk 0:01:18]} 17. Qa5 {[%clk 0:02:05]}  Be5 {[%clk 0:01:17]} 18. Rxd7 {[%clk 0:01:57]}  Rxd7 {[%clk 0:01:18]} 19. Qb4 {[%clk 0:01:51]}  b6 {[%clk 0:01:13]} 20. Ne2 {[%clk 0:01:41]}  a5 {[%clk 0:01:11]} 21. Qa4 {[%clk 0:01:36]}  Bxb2 {[%clk 0:00:53]} 22. c3 {[%clk 0:01:31]}  Ne5 {[%clk 0:00:54]} 23. Rb1 {[%clk 0:01:26]}  Qc4 {[%clk 0:00:52]} 24. Qc2 {[%clk 0:01:20]}  Bxa3 {[%clk 0:00:52]} 25. f4 {[%clk 0:01:19]}  Bc5 {[%clk 0:00:46]} 26. Bxc5 {[%clk 0:01:11]}  Qxc5+ {[%clk 0:00:47]} 27. Kh2 {[%clk 0:01:10]}  Nc4 {[%clk 0:00:41]} 28. Rd1 {[%clk 0:01:09]}  Rxd1 {[%clk 0:00:33]} 29. Qxd1 {[%clk 0:01:09]}  Qd6 {[%clk 0:00:33]} 30. Qb3 {[%clk 0:01:09]}  b5 {[%clk 0:00:34]} 31. Kg3 {[%clk 0:01:08]}  a4 {[%clk 0:00:34]} 32. Qa2 {[%clk 0:01:03]}  Qd3+ {[%clk 0:00:30]} 33. Kf2 {[%clk 0:01:02]}  Qe3+ {[%clk 0:00:31]} 34. Kf1 {[%clk 0:01:01]}  Qxe4 {[%clk 0:00:31]} 35. Nd4 {[%clk 0:00:55]}  Qxf4+ {[%clk 0:00:30]} 36. Kg1 {[%clk 0:00:55]}  Qe3+ {[%clk 0:00:30]} 37. Kh2 {[%clk 0:00:55]}  Qxc3 {[%clk 0:00:28]} 38. Qe2 {[%clk 0:00:54]}  Qe3 {[%clk 0:00:29]} 39. Qg4 {[%clk 0:00:54]}  Qe5+ {[%clk 0:00:28]} 40. Kh1 {[%clk 0:00:52]}  h5 {[%clk 0:00:10]} 41. Qc8+ {[%clk 0:00:51]}  Kh7 {[%clk 0:00:11]} 42. Nxc6 {[%clk 0:00:42]}  Qe4 {[%clk 0:00:10]} 43. Qxc7 {[%clk 0:00:37]}  Ne3 {[%clk 0:00:10]} 44. Qg3 {[%clk 0:00:35]}  a3 {[%clk 0:00:05]} 45. Nb4 {[%clk 0:00:30]}  Qxb4 {[%clk 0:00:04]} 46. Qxe3 {[%clk 0:00:30]}  Qb1+ {[%clk 0:00:05]} 47. Kh2 {[%clk 0:00:30]}  a2 {[%clk 0:00:06]} 48. Qf3 {[%clk 0:00:30]}  Qg6 {[%clk 0:00:03]} 49. Qa3 {[%clk 0:00:30]}  Qb1 {[%clk 0:00:02]} 50. Qf3 {[%clk 0:00:30]}  g6 {[%clk 0:00:02]} 51. Qb7+ {[%clk 0:00:29]}  Kh6 {[%clk 0:00:02]} 52. Qe7 {[%clk 0:00:20]}  a1=Q {[%clk 0:00:03]} 53. Qf8+ {[%clk 0:00:20]}  Kg5 {[%clk 0:00:04]} 54. Qc5+ {[%clk 0:00:21]}  Qe5+ {[%clk 0:00:03]} 55. Qxe5+ {[%clk 0:00:21]}  fxe5 {[%clk 0:00:04]} 56. h4+ {[%clk 0:00:21]}  Kg4 {[%clk 0:00:04]} 57. g3 {[%clk 0:00:22]}  Qc2+ {[%clk 0:00:05]} 58. Kg1 {[%clk 0:00:22]}  b4 {[%clk 0:00:06]} 59. Kf1 {[%clk 0:00:23]}  b3 {[%clk 0:00:07]} 60. Ke1 {[%clk 0:00:24]}  b2 {[%clk 0:00:07]} 61. Kf1 {[%clk 0:00:24]}  b1=Q# {[%clk 0:00:08]} 0-1


[Site "https://www.chess.com"]

[Event "Titled Tuesday Blitz March 28 Late 2023"]
[White "Bernadskiy, Vitaliy"]
[Black "Mihajlov, Sebastian"]
[WhiteFideId "14100371"]
[BlackFideId "1512110"]
[WhiteElo "2488"]
[BlackElo "2464"]
[Result "1-0"]
[Round "05"]
[TimeControl "180+2"]
[Date "2023.03.28"]
[WhiteClock "0:00:16"]
[BlackClock "0:00:12"]

1. Nf3 {[%clk 0:02:59]}  Nf6 {[%clk 0:02:55]} 2. d4 {[%clk 0:02:56]}  d5 {[%clk 0:02:50]} 3. c4 {[%clk 0:02:54]}  c6 {[%clk 0:02:50]} 4. Nbd2 {[%clk 0:02:53]}  Bf5 {[%clk 0:02:48]} 5. Nh4 {[%clk 0:02:47]}  Bc8 {[%clk 0:02:45]} 6. e3 {[%clk 0:02:45]}  e6 {[%clk 0:02:42]} 7. Bd3 {[%clk 0:02:45]}  Nbd7 {[%clk 0:02:42]} 8. O-O {[%clk 0:02:44]}  Bd6 {[%clk 0:02:41]} 9. b3 {[%clk 0:02:41]}  Ne4 {[%clk 0:02:15]} 10. g3 {[%clk 0:02:26]}  Ndf6 {[%clk 0:01:36]} 11. Bb2 {[%clk 0:02:23]}  O-O {[%clk 0:01:35]} 12. Ndf3 {[%clk 0:02:11]}  Nd7 {[%clk 0:00:52]} 13. Ne5 {[%clk 0:02:03]}  f6 {[%clk 0:00:50]} 14. Nxd7 {[%clk 0:02:01]}  Bxd7 {[%clk 0:00:20]} 15. Qc2 {[%clk 0:02:01]}  f5 {[%clk 0:00:20]} 16. Nf3 {[%clk 0:02:01]}  Qe7 {[%clk 0:00:20]} 17. Ne5 {[%clk 0:02:02]}  Be8 {[%clk 0:00:20]} 18. f3 {[%clk 0:02:01]}  Nf6 {[%clk 0:00:20]} 19. Rae1 {[%clk 0:02:00]}  Kh8 {[%clk 0:00:18]} 20. c5 {[%clk 0:01:58]}  Bc7 {[%clk 0:00:18]} 21. b4 {[%clk 0:01:56]}  Nd7 {[%clk 0:00:18]} 22. e4 {[%clk 0:01:49]}  fxe4 {[%clk 0:00:18]} 23. fxe4 {[%clk 0:01:49]}  Rxf1+ {[%clk 0:00:19]} 24. Rxf1 {[%clk 0:01:49]}  Nxe5 {[%clk 0:00:20]} 25. dxe5 {[%clk 0:01:50]}  Bg6 {[%clk 0:00:21]} 26. exd5 {[%clk 0:01:46]}  Bxd3 {[%clk 0:00:21]} 27. Qxd3 {[%clk 0:01:02]}  cxd5 {[%clk 0:00:22]} 28. Qf3 {[%clk 0:00:44]}  Kg8 {[%clk 0:00:20]} 29. Bd4 {[%clk 0:00:40]}  Rf8 {[%clk 0:00:20]} 30. Qxf8+ {[%clk 0:00:40]}  Qxf8 {[%clk 0:00:20]} 31. Rxf8+ {[%clk 0:00:40]}  Kxf8 {[%clk 0:00:21]} 32. Kf2 {[%clk 0:00:40]}  a6 {[%clk 0:00:20]} 33. a4 {[%clk 0:00:39]}  Kf7 {[%clk 0:00:21]} 34. Kf3 {[%clk 0:00:38]}  Kg6 {[%clk 0:00:21]} 35. g4 {[%clk 0:00:36]}  h5 {[%clk 0:00:21]} 36. h3 {[%clk 0:00:36]}  Bb8 {[%clk 0:00:20]} 37. b5 {[%clk 0:00:36]}  Bc7 {[%clk 0:00:19]} 38. b6 {[%clk 0:00:23]}  Bb8 {[%clk 0:00:15]} 39. Kf4 {[%clk 0:00:21]}  hxg4 {[%clk 0:00:15]} 40. hxg4 {[%clk 0:00:21]}  Kh6 {[%clk 0:00:13]} 41. g5+ {[%clk 0:00:17]}  Kh5 {[%clk 0:00:12]} 42. c6 {[%clk 0:00:16]}  bxc6 {[%clk 0:00:12]} 43. Bc5 {[%clk 0:00:16]} 1-0


[Site "https://www.chess.com"]